[Event "45th FIDE Olympiad 2024"]
[Site "Budapest"]
[Date "2024.09.16"]
[Round "6.56"]
[White "Hovhannisyan, Robert"]
[Black "Gomez, John Paul"]
[Result "1-0"]
[ECO "C67"]
[WhiteElo "2619"]
[BlackElo "2408"]
[Annotator "RC"]
[PlyCount "177"]
[EventDate "2024.09.05"]
[EventType "team-tourn"]
[EventCountry "HUN"]
[SourceTitle "playchess.com"]
[Source "ChessBase"]
[SourceQuality "1"]
[WhiteTeam "Armenia"]
[BlackTeam "Philippines"]
[WhiteTeamCountry "ARM"]
[BlackTeamCountry "PHI"]
[TimeControl "40/5400+30:1800+30"]

1. e4 {[%emt 0:00:05]} e5 {[%emt 0:00:13]} 2. Nf3 {[%emt 0:00:13]} Nc6 {[%emt 0:00:09]} 3. Bb5 {[%emt 0:00:11]} Nf6 {[%emt 0:00:09]} 4. O-O {[%emt 0:01:24]} Nxe4 {[%emt 0:00:11]} 5. d4 {[%emt 0:00:24]} Nd6 {[%emt 0:00:10]} 6. Bxc6 {[%emt 0:00:08]} dxc6 {[%emt 0:00:07]} 7. dxe5 {[%emt 0:00:04]} Nf5 {[%emt 0:00:12]} 8. Qxd8+ {[%emt 0:00:06]} Kxd8 {[%emt 0:00:08]} 9. Rd1+ {[%emt 0:01:01]} Ke8 {[%emt 0:00:09]} 10. Nc3 {[%emt 0:00:04]} Be7 {[%emt 0:01:24]} 11. h3 {[%emt 0:01:24]} b6 {[%emt 0:12:30]} 12. a4 {[%emt 0:05:29]} a5 {[%emt 0:03:19]} 13. Bf4 {[%emt 0:04:17]} h6 {[%emt 0:04:13]} 14. g4 {[%emt 0:09:50]} Nh4 {[%emt 0:01:17]} 15. Nxh4 {[%emt 0:02:49]} Bxh4 {[%emt 0:00:10]} 16. Ne2 {[%emt 0:03:16]} Bd7 {[%emt 0:14:06]} 17. Ra3 {[%emt 0:06:51]} c5 {[%emt 0:02:28]} 18. Nc3 {[%emt 0:09:21]} Bc6 {[%emt 0:04:49]} 19. Nb5 {[%emt 0:04:44]} Bxb5 {[%emt 0:02:08]} 20. axb5 {[%emt 0:00:04]} Rd8 {[%emt 0:00:38]} 21. Rad3 {[%emt 0:01:33]} Rxd3 {[%emt 0:00:36]} 22. Rxd3 {[%emt 0:00:21]} Bd8 {[%emt 0:00:56]} 23. Kg2 {[%emt 0:07:21]} h5 {[%emt 0:08:00]} 24. c4 {[%emt 0:03:02]} hxg4 {[%emt 0:04:03]} 25. hxg4 {[%emt 0:01:58]} g5 {[%emt 0:01:40]} 26. Bd2 {[%emt 0:01:26]} Rg8 {[%emt 0:08:42]} 27. Rh3 {[%emt 0:04:32]} Kd7 {[%emt 0:01:59]} 28. Kf3 {[%emt 0:00:46]} Ke6 {[%emt 0:00:52]} 29. Ke4 {[%emt 0:01:11]} Be7 {[%emt 0:04:09]} 30. Rh6+ {[%emt 0:04:29]} Rg6 {[%emt 0:00:11]} 31. Rh1 {[%emt 0:03:51]} Rg8 {[%emt 0:00:26]} 32. b3 {[%emt 0:03:07]} Bd8 {[%emt 0:02:08]} 33. Rh6+ {[%emt 0:00:52]} Rg6 {[%emt 0:00:07]} 34. Rh8 {[%emt 0:00:30]} Be7 {[%emt 0:00:08]} 35. Bc3 {[%emt 0:02:56]} Rg7 {[%emt 0:02:44]} 36. Bb2 {[%emt 0:09:25]} Rg6 {[%emt 0:00:16]} 37. Bc1 {[%emt 0:01:01]} Rg7 {[%emt 0:00:34]} 38. Be3 {[%emt 0:00:42]} Rg6 {[%emt 0:00:18]} 39. Ra8 {[%emt 0:02:49]} Rg7 {[%emt 0:02:29]} 40. Re8 {[%emt 0:03:00]} Rg6 {[%emt 0:01:38]} 41. Rh8 {[%emt 0:31:29]} Rg7 {[%emt 0:30:15]} 42. Bd2 {[%emt 0:01:42]} Rg6 {[%emt 0:00:21]} 43. Rc8 {[%emt 0:00:00]} Kd7 {[%emt 0:00:00]} 44. Ra8 {[%emt 0:00:00]} Ke6 {[%emt 0:00:00]} 45. f3 {[%emt 0:00:00]} Rg7 {[%emt 0:00:00]} 46. Rh8 {[%emt 0:00:00]} Rg6 {[%emt 0:00:00]} 47. Be1 {[%emt 0:00:00]} Rg7 {[%emt 0:00:00]} 48. Bg3 {[%emt 0:00:00]} Rg6 {[%emt 0:00:00]} 49. Rh1 {[%emt 0:00:00]} Rg8 {[%emt 0:00:00]} 50. Rh5 {[%emt 0:00:00]} Bf8 {[%emt 0:00:00]} 51. Bf2 {[%emt 0:00:00]} Rg6 {[%emt 0:00:00]} 52. Be1 {[%emt 0:00:00]} Rg8 {[%emt 0:00:00]} 53. Bg3 {[%emt 0:00:00]} Rg6 {[%emt 0:00:00]} 54. f4 {[%emt 0:00:00]} gxf4 {[%emt 0:00:00]} 55. Kxf4 {[%emt 0:00:00]} Rg8 {[%emt 0:00:02]} 56. Bh4 {[%emt 0:00:00]} Bg7 {[%emt 0:00:42]} 57. Ke4 {[%emt 0:00:00]} Rh8 {[%emt 0:04:30]} 58. Kf4 {[%emt 0:03:51]} Bh6+ {[%emt 0:02:32]} 59. Kf3 {[%emt 0:01:42]} Bg7 {[%emt 0:01:43]} 60. Ke4 {[%emt 0:00:19]} Rg8 {[%emt 0:04:09]} 61. Rg5 {[%emt 0:00:25]} Rh8 {[%emt 0:00:17]} 62. Rh5 {[%emt 0:01:02]} Rg8 {[%emt 0:00:07]} 63. Rf5 {[%emt 0:00:49]} Bh8 {[%emt 0:05:32]} 64. Kf4 {[%emt 0:00:34]} Ra8 {[%emt 0:06:04]} 65. Bf6 {[%emt 0:01:34]} Bxf6 {[%emt 0:00:09]} 66. Rxf6+ {[%emt 0:00:07]} Ke7 {[%emt 0:00:03]} 67. Ke4 {[%emt 0:01:58]} Rd8 {[%emt 0:03:05]} 68. Rc6 {[%emt 0:00:18]} Rd4+ {[%emt 0:00:44]} 69. Kf5 {[%emt 0:00:05]} Kd8 {[%emt 0:02:32]} 70. Rf6 {[%emt 0:00:54]} Ke7 {[%emt 0:00:10]} 71. e6 {[%emt 0:01:34]} fxe6+ {[%emt 0:00:23]} 72. Rxe6+ {[%emt 0:00:02]} Kf7 {[%emt 0:00:42]} 73. g5 {[%emt 0:00:36]} Rd7 {[%emt 0:00:26]} 74. g6+ {[%emt 0:00:38]} Kg7 {[%emt 0:00:04]} 75. Kg5 {[%emt 0:00:07]} Rd3 {[%emt 0:00:47]} 76. Re7+ {[%emt 0:00:09]} Kg8 {[%emt 0:00:06]} 77. Rxc7 {[%emt 0:00:33]} Rxb3 {[%emt 0:00:04]} 78. Rb7 {[%emt 0:00:13]} Rc3 {[%emt 0:00:30]} 79. Kf6 {[%emt 0:01:43]} Rf3+ {[%emt 0:00:14]} 80. Ke5 {[%emt 0:00:23]} Rc3 {[%emt 0:00:58]} 81. Kd5 {[%emt 0:00:53]} Rd3+ {[%emt 0:00:07]} 82. Kc6 {[%emt 0:00:09]} Rd4 {[%emt 0:00:32]} 83. Rxb6 {[%emt 0:00:40]} Rxc4 {[%emt 0:00:15]} 84. Ra6 {[%emt 0:00:07]} Rg4 {[%emt 0:00:30]} 85. b6 {[%emt 0:00:21]} Rxg6+ {[%emt 0:00:13]} 86. Kb5 {[%emt 0:00:14]} Rg1 {[%emt 0:00:47]} 87. b7 {[%emt 0:00:18]} Rb1+ {[%emt 0:00:06]} 88. Kc6 {[%emt 0:00:05]} c4 {[%emt 0:00:28]} 89. Rb6 {[%emt 0:00:11]} 1-0

[Event "45th FIDE Olympiad 2024"]
[Site "Budapest"]
[Date "2024.09.16"]
[Round "6.57"]
[White "Bjerre, Jonas Buhl"]
[Black "Navara, David"]
[Result "1/2-1/2"]
[ECO "C65"]
[WhiteElo "2648"]
[BlackElo "2681"]
[Annotator "TA"]
[PlyCount "84"]
[EventDate "2024.09.05"]
[EventType "team-tourn"]
[EventCountry "HUN"]
[SourceTitle "playchess.com"]
[Source "ChessBase"]
[SourceQuality "1"]
[WhiteTeam "Denmark"]
[BlackTeam "Czech Republic"]
[WhiteTeamCountry "DEN"]
[BlackTeamCountry "CZE"]
[TimeControl "40/5400+30:1800+30"]

{[%evp 9,84,18,16,12,13,8,15,0,6,8,20,14,14,10,19,9,13,28,9,14,15,17,12,16,22,0,16,0,18,2,1,13,13,10,9,0,0,-8,0,-4,-12,-8,-12,-11,-8,-12,-13,-13,-8,-8,-8,-8,0,0,0,-7,0,0,0,0,0,0,0,0,0,0,0,0,0,0,0,0,0,0,0,0,0]} 1. e4 {[%emt 0:00:08]} e5 {[%emt 0:00:04]} 2. Nf3 {[%emt 0:00:06]} Nc6 {[%emt 0:00:04]} 3. Bb5 {[%emt 0:00:10]} Nf6 {[%emt 0:00:05]} 4. d3 {[%emt 0:00:11][%cal Bd2d3,Bd3d4][%mdl 32]} Bc5 {[%emt 0:00:05]} 5. Bxc6 {[%emt 0:00:17]} dxc6 {[%emt 0:00:07]} 6. O-O {[%emt 0:00:20]} (6. Nxe5 $2 {too greedy.} Qd4 7. O-O Qxe5 $19) 6... Nd7 {[%emt 0:00:48]} 7. c3 {[%emt 0:00:18]} O-O {[%emt 0:00:31]} 8. d4 {[%emt 0:00:18]} Bd6 {[%emt 0:00:07]} 9. Bg5 {[%emt 0:00:43][%cal Bc1g5,Bg5h4,Bh4g3][%mdl 32]} Qe8 {[%emt 0:01:57]} 10. Re1 {[%emt 0:02:31]} a5 {[%emt 0:05:50]} 11. Bh4 {[%emt 0:04:19]} f6 {[%emt 0:02:07]} 12. Nbd2 {[%emt 0:01:23]} Qf7 {[%emt 0:02:03]} 13. Bg3 {[%emt 0:08:30]} Re8 {[%emt 0:03:43]} 14. b3 {[%emt 0:08:32] The position is equal.} Nb6 {[%emt 0:06:41]} 15. Qc2 {[%emt 0:03:12]} c5 {[%emt 0:08:55]} 16. dxe5 {[%emt 0:07:35]} fxe5 {[%emt 0:00:19]} 17. Nf1 {[%emt 0:04:21]} Bg4 {[%emt 0:06:20]} 18. Nh4 {[%emt 0:04:57]} c4 {[%emt 0:10:23]} 19. Nf5 {[%emt 0:04:27]} cxb3 {[%emt 0:06:33]} 20. axb3 {[%emt 0:00:19]} Bxf5 {[%emt 0:01:05]} 21. exf5 {[%emt 0:00:04]} Nd5 {[%emt 0:06:50]} 22. Nd2 {[%emt 0:02:56]} Ne7 {[%emt 0:04:27]} 23. Bxe5 {[%emt 0:12:14]} Qxf5 {[%emt 0:00:52]} 24. Qxf5 {[%emt 0:03:32]} Nxf5 {[%emt 0:00:10]} 25. Nc4 {[%emt 0:02:30]} b5 {[%emt 0:02:35]} 26. Nxd6 {[%emt 0:02:49]} cxd6 {[%emt 0:00:37]} 27. Bf4 {[%emt 0:01:00]} Rxe1+ {[%emt 0:01:07]} 28. Rxe1 $11 {[%emt 0:00:03][%mdl 4096] Endgame. KRB-KRN} a4 {[%emt 0:00:12]} 29. bxa4 {[%emt 0:02:11]} bxa4 {[%emt 0:00:13]} 30. g4 {[%emt 0:02:07]} Nh4 {[%emt 0:00:32]} 31. Ra1 {[%emt 0:00:57]} d5 {[%emt 0:01:53]} 32. Kf1 {[%emt 0:01:32]} Kf7 {[%emt 0:02:07]} 33. Ke2 {[%emt 0:01:33]} Ng6 {[%emt 0:01:21]} 34. Bg3 {[%emt 0:02:01]} Nf8 {[%emt 0:02:03]} 35. Kd3 {[%emt 0:03:32]} Ne6 {[%emt 0:00:22]} 36. Ra3 {[%emt 0:03:18]} Rc8 {[%emt 0:00:51]} 37. Bd6 {[%emt 0:02:08]} Rc4 {[%emt 0:00:37]} 38. f3 {[%emt 0:01:35]} Nf4+ {[%emt 0:07:27]} 39. Kc2 {[%emt 0:03:41]} Ng2 {[%emt 0:03:45]} 40. Kd3 {[%emt 0:03:00]} Nf4+ {[%emt 0:04:58]} 41. Kc2 {[%emt 0:30:06]} Ng2 {[%emt 0:30:14] ...Ne1+ is the strong threat.} 42. Kd3 {[%emt 0:00:06]} Nf4+ {[%emt 0:00:32] A balanced but interesting game.   Weighted Error Value: White=0.03 (flawless) /Black=0.02 (flawless) .  OK:         	White=17    	Black=12     Best:        	White=1     	Black=1} 1/2-1/2

[Event "45th FIDE Olympiad 2024"]
[Site "Budapest"]
[Date "2024.09.16"]
[Round "6.57"]
[White "Kumar, Manoj"]
[Black "Morazo, John Ranel"]
[Result "1/2-1/2"]
[WhiteElo "1951"]
[BlackElo "2200"]
[PlyCount "81"]
[EventDate "2024.09.05"]
[EventType "team-tourn"]
[EventCountry "HUN"]
[WhiteTeam "Fiji"]
[BlackTeam "Palau"]
[WhiteTeamCountry "FIJ"]
[BlackTeamCountry "PAL"]
[TimeControl "40/5400+30:1800+30"]

1. d4 Nf6 2. Nf3 c5 3. c3 g6 4. Bf4 Bg7 5. e3 O-O 6. Nbd2 d6 7. h3 Nc6 8. Be2 Be6 9. Ng5 Bd7 10. Ngf3 h6 11. O-O Be6 12. e4 cxd4 13. cxd4 d5 14. e5 Ne4 15. Bd3 Nxd2 16. Qxd2 Kh7 17. Rfe1 Qd7 18. b4 Bf5 19. b5 Nd8 20. a4 Bxd3 21. Qxd3 Ne6 22. Bd2 Rfc8 23. Rec1 Rxc1+ 24. Rxc1 Rc8 25. Rxc8 Qxc8 26. Qc3 Qxc3 27. Bxc3 Kg8 28. Kf1 Kf8 29. Bd2 a6 30. bxa6 bxa6 31. Ke2 Ke8 32. Kd3 Kd7 33. Ne1 f6 34. f4 h5 35. Nf3 Nf8 36. g4 Kc6 37. Nh4 Kd7 38. gxh5 gxh5 39. Nf5 Ne6 40. Ng3 Bh6 41. Nxh5 1/2-1/2

[Event "45th FIDE Olympiad 2024"]
[Site "Budapest"]
[Date "2024.09.16"]
[Round "6.58"]
[White "Nguyen, Thai Dai Van"]
[Black "Andersen, Mads"]
[Result "1-0"]
[ECO "C88"]
[WhiteElo "2647"]
[BlackElo "2598"]
[Annotator "RC"]
[PlyCount "89"]
[EventDate "2024.09.05"]
[EventType "team-tourn"]
[EventCountry "HUN"]
[SourceTitle "playchess.com"]
[Source "ChessBase"]
[SourceQuality "1"]
[WhiteTeam "Czech Republic"]
[BlackTeam "Denmark"]
[WhiteTeamCountry "CZE"]
[BlackTeamCountry "DEN"]
[TimeControl "40/5400+30:1800+30"]

1. e4 {[%emt 0:00:07]} e5 {[%emt 0:00:09]} 2. Nf3 {[%emt 0:00:08]} Nc6 {[%emt 0:00:07]} 3. Bb5 {[%emt 0:00:08]} a6 {[%emt 0:00:08]} 4. Ba4 {[%emt 0:00:09]} Nf6 {[%emt 0:00:09]} 5. O-O {[%emt 0:00:08]} Be7 {[%emt 0:00:09]} 6. Re1 {[%emt 0:00:09]} b5 {[%emt 0:00:07]} 7. Bb3 {[%emt 0:00:06]} O-O {[%emt 0:00:09]} 8. a4 {[%emt 0:00:07]} Bb7 {[%emt 0:00:07]} 9. d3 {[%emt 0:00:26]} d5 {[%emt 0:00:09]} 10. exd5 {[%emt 0:02:07]} Nxd5 {[%emt 0:00:15]} 11. Nc3 {[%emt 0:00:31]} Nxc3 {[%emt 0:06:51]} 12. bxc3 {[%emt 0:00:02]} Bf6 {[%emt 0:16:50]} 13. Nd2 {[%emt 0:00:02]} Na5 {[%emt 0:03:48]} 14. Ba2 {[%emt 0:00:48]} Bd5 {[%emt 0:08:04]} 15. Ba3 {[%emt 0:13:48]} Re8 {[%emt 0:00:00]} 16. Bxd5 {[%emt 0:00:52]} Qxd5 {[%emt 0:00:00]} 17. Ne4 {[%emt 0:00:07]} Qe6 {[%emt 0:13:43]} 18. Qf3 {[%emt 0:03:30]} Be7 {[%emt 0:12:26]} 19. Bxe7 {[%emt 0:04:44]} Qxe7 {[%emt 0:00:02]} 20. axb5 {[%emt 0:00:50]} axb5 {[%emt 0:00:11]} 21. Ng3 {[%emt 0:01:45]} Qf6 {[%emt 0:10:57]} 22. Qxf6 {[%emt 0:17:59]} gxf6 {[%emt 0:00:02]} 23. Nh5 {[%emt 0:12:36]} Re6 {[%emt 0:00:16]} 24. Ra2 {[%emt 0:01:24]} Kf8 {[%emt 0:01:55]} 25. f4 {[%emt 0:08:43]} Ra7 {[%emt 0:08:57]} 26. Rea1 {[%emt 0:01:18]} Rea6 {[%emt 0:00:10]} 27. Kf2 {[%emt 0:05:43]} Ra8 {[%emt 0:04:11]} 28. Kf3 {[%emt 0:01:40]} Ke7 {[%emt 0:00:15]} 29. Ke4 {[%emt 0:02:40]} R6a7 {[%emt 0:04:23]} 30. Kf5 {[%emt 0:02:20]} Ra6 {[%emt 0:00:29]} 31. Ra3 {[%emt 0:05:36]} R8a7 {[%emt 0:00:35]} 32. g4 {[%emt 0:02:00]} h6 {[%emt 0:00:18]} 33. h4 {[%emt 0:04:50]} Ra8 {[%emt 0:00:15]} 34. Ke4 {[%emt 0:01:09]} Nb7 {[%emt 0:07:30]} 35. Rxa6 {[%emt 0:00:06]} Nc5+ {[%emt 0:00:04]} 36. Kf5 {[%emt 0:02:30]} Rxa6 {[%emt 0:00:06]} 37. Rxa6 {[%emt 0:00:42]} Nxa6 {[%emt 0:00:04]} 38. fxe5 {[%emt 0:02:39]} fxe5 {[%emt 0:00:23]} 39. Nf6 {[%emt 0:00:21]} c6 {[%emt 0:02:19]} 40. Kxe5 {[%emt 0:02:48]} b4 {[%emt 0:00:23]} 41. Ng8+ {[%emt 0:32:14]} Kd7 {[%emt 0:05:12]} 42. c4 {[%emt 0:00:00]} Nc5 {[%emt 0:00:30]} 43. d4 {[%emt 0:00:00]} b3 {[%emt 0:00:53]} 44. cxb3 {[%emt 0:00:00]} Nxb3 {[%emt 0:00:07]} 45. Nxh6 {[%emt 0:00:00]} 1-0

[Event "45th FIDE Olympiad 2024"]
[Site "Budapest"]
[Date "2024.09.16"]
[Round "6.58"]
[White "Tan, Santiago Jr"]
[Black "Prasad, Rudr"]
[Result "0-1"]
[WhiteElo "1903"]
[BlackElo "1777"]
[PlyCount "120"]
[EventDate "2024.09.05"]
[EventType "team-tourn"]
[EventCountry "HUN"]
[WhiteTeam "Palau"]
[BlackTeam "Fiji"]
[WhiteTeamCountry "PAL"]
[BlackTeamCountry "FIJ"]
[TimeControl "40/5400+30:1800+30"]

1. e4 c6 2. Nf3 d5 3. exd5 cxd5 4. d4 Nc6 5. Be2 Bg4 6. O-O e6 7. Re1 Bd6 8. h3 Bh5 9. a3 Nf6 10. b3 Qb6 11. Bb2 O-O 12. Nbd2 Rac8 13. b4 a5 14. c3 axb4 15. axb4 Rfe8 16. Nh4 Bxe2 17. Rxe2 e5 18. Nf5 Bf8 19. dxe5 Nxe5 20. Nb3 Nc4 21. Bc1 Rxe2 22. Qxe2 Re8 23. Be3 Qc7 24. Qd3 Nxe3 25. Nxe3 Qe5 26. Rd1 Rc8 27. Nd4 Ne4 28. Nf3 Qxc3 29. Qxd5 Qxb4 30. Qd7 Ra8 31. Nd5 Qa4 32. Qxa4 Rxa4 33. Rc1 g6 34. Rc2 Ra5 35. Ne3 Bc5 36. Re2 f5 37. g3 b5 38. Kg2 b4 39. Nc4 Rb5 40. Ne1 Kf8 41. f3 Nd6 42. Ne5 b3 43. Nd7+ Kf7 44. Nxc5 b2 45. Rxb2 Rxb2+ 46. Kf1 Nc4 47. Ncd3 Ne3+ 48. Kg1 Re2 49. f4 Ke6 50. g4 fxg4 51. hxg4 Nxg4 52. Kf1 Rd2 53. Nc5+ Kd5 54. Nb3 Rb2 55. Nc1 Ke4 56. Ne2 h5 57. Ng2 Nh2+ 58. Kf2 Rc2 59. Nh4 Ng4+ 60. Ke1 Kd3 {0-} 0-1

[Event "45th FIDE Olympiad 2024"]
[Site "Budapest"]
[Date "2024.09.16"]
[Round "6.59"]
[White "Thybo, Jesper Sondergaard"]
[Black "Zilka, Stepan"]
[Result "1/2-1/2"]
[ECO "E05"]
[WhiteElo "2555"]
[BlackElo "2574"]
[Annotator "RC"]
[PlyCount "175"]
[EventDate "2024.09.05"]
[EventType "team-tourn"]
[EventCountry "HUN"]
[SourceTitle "playchess.com"]
[Source "ChessBase"]
[SourceQuality "1"]
[WhiteTeam "Denmark"]
[BlackTeam "Czech Republic"]
[WhiteTeamCountry "DEN"]
[BlackTeamCountry "CZE"]
[TimeControl "40/5400+30:1800+30"]

1. d4 {[%emt 0:00:05]} d5 {[%emt 0:00:09]} 2. Nf3 {[%emt 0:00:33]} Nf6 {[%emt 0:00:07]} 3. c4 {[%emt 0:00:12]} e6 {[%emt 0:00:06]} 4. g3 {[%emt 0:00:14]} Be7 {[%emt 0:00:09]} 5. Bg2 {[%emt 0:00:19]} O-O {[%emt 0:00:08]} 6. O-O {[%emt 0:00:12]} dxc4 {[%emt 0:00:10]} 7. Qc2 {[%emt 0:00:19]} a6 {[%emt 0:00:09]} 8. a4 {[%emt 0:00:10]} Nbd7 {[%emt 0:00:17]} 9. Nbd2 {[%emt 0:06:19]} b6 {[%emt 0:00:07]} 10. Ne5 {[%emt 0:07:15]} Nxe5 {[%emt 0:00:05]} 11. Bxa8 {[%emt 0:00:21]} Qxd4 {[%emt 0:00:05]} 12. Nf3 {[%emt 0:00:21]} Nxf3+ {[%emt 0:00:14]} 13. Bxf3 {[%emt 0:00:08]} Nd5 {[%emt 0:00:31]} 14. Bd2 {[%emt 0:04:08]} a5 {[%emt 0:03:50]} 15. Rac1 {[%emt 0:09:27]} Ba6 {[%emt 0:05:43]} 16. Rfd1 {[%emt 0:01:59]} Bc5 {[%emt 0:03:53]} 17. Be1 {[%emt 0:03:27]} Qe5 {[%emt 0:01:22]} 18. Bc3 {[%emt 0:03:35]} Nxc3 {[%emt 0:06:45]} 19. Qxc3 {[%emt 0:00:40]} Bd6 {[%emt 0:07:37]} 20. Qxe5 {[%emt 0:04:16]} Bxe5 {[%emt 0:00:06]} 21. Rd2 {[%emt 0:00:13]} f5 {[%emt 0:22:10]} 22. e3 {[%emt 0:07:38]} Kf7 {[%emt 0:03:14]} 23. Be2 {[%emt 0:00:54]} c3 {[%emt 0:00:39]} 24. bxc3 {[%emt 0:00:13]} Bb7 {[%emt 0:00:20]} 25. Bb5 {[%emt 0:11:28]} Bd6 {[%emt 0:01:22]} 26. f4 {[%emt 0:02:41]} Rg8 {[%emt 0:01:02]} 27. Kf2 {[%emt 0:01:35]} g5 {[%emt 0:02:50]} 28. Rg1 {[%emt 0:02:59]} Kf6 {[%emt 0:04:26]} 29. h4 {[%emt 0:04:57]} h6 {[%emt 0:00:53]} 30. Be2 {[%emt 0:02:38]} Bc6 {[%emt 0:01:15]} 31. Bb5 {[%emt 0:02:11]} Bb7 {[%emt 0:01:59]} 32. Rdd1 {[%emt 0:01:57]} Bd5 {[%emt 0:05:27]} 33. Bd3 {[%emt 0:04:41]} Bc6 {[%emt 0:05:35]} 34. Bc2 {[%emt 0:00:21]} Bc5 {[%emt 0:02:49]} 35. Ke2 {[%emt 0:06:03]} b5 {[%emt 0:04:04]} 36. axb5 {[%emt 0:00:35]} Bxb5+ {[%emt 0:00:07]} 37. Bd3 {[%emt 0:00:24]} Bc6 {[%emt 0:00:08]} 38. fxg5+ {[%emt 0:09:05]} hxg5 {[%emt 0:00:07]} 39. g4 {[%emt 0:00:04]} gxh4 {[%emt 0:11:53]} 40. gxf5 {[%emt 0:00:20]} Bg2 {[%emt 0:02:11]} 41. Be4 {[%emt 0:35:29]} h3 {[%emt 0:30:53]} 42. fxe6 {[%emt 0:00:00]} a4 {[%emt 0:00:00]} 43. Bxg2 {[%emt 0:00:00]} hxg2 {[%emt 0:00:00]} 44. Kf3 {[%emt 0:00:00]} a3 {[%emt 0:00:00]} 45. Rxg2 {[%emt 0:00:00]} Ra8 {[%emt 0:00:00]} 46. Ke4 {[%emt 0:00:00]} Kxe6 {[%emt 0:00:00]} 47. Rdd2 {[%emt 0:00:00]} Be7 {[%emt 0:00:00]} 48. Kd3 {[%emt 0:00:00]} Ra4 {[%emt 0:00:00]} 49. Rh2 {[%emt 0:00:00]} Bf6 {[%emt 0:00:00]} 50. Ra2 {[%emt 0:00:19]} c5 {[%emt 0:00:00]} 51. Rh5 {[%emt 0:01:46]} c4+ {[%emt 0:00:00]} 52. Kc2 {[%emt 0:00:24]} Be7 {[%emt 0:00:00]} 53. Ra1 {[%emt 0:00:54]} Ra8 {[%emt 0:00:00]} 54. Rb1 {[%emt 0:00:58]} a2 {[%emt 0:00:26]} 55. Ra1 {[%emt 0:00:29]} Ra3 {[%emt 0:00:26]} 56. Kb2 {[%emt 0:01:27]} Rb3+ {[%emt 0:00:10]} 57. Kxa2 {[%emt 0:00:26]} Rxc3 {[%emt 0:00:12]} 58. Re1 {[%emt 0:00:07]} Bb4 {[%emt 0:02:39]} 59. Re2 {[%emt 0:01:06]} Ra3+ {[%emt 0:01:23]} 60. Kb1 {[%emt 0:00:24]} Rb3+ {[%emt 0:00:33]} 61. Rb2 {[%emt 0:00:33]} Bc3 {[%emt 0:00:04]} 62. Rxb3 {[%emt 0:00:25]} cxb3 {[%emt 0:00:05]} 63. Rb5 {[%emt 0:00:39]} b2 {[%emt 0:00:31]} 64. Kc2 {[%emt 0:00:07]} Be5 {[%emt 0:00:31]} 65. Kd3 {[%emt 0:00:35]} Kd6 {[%emt 0:00:22]} 66. Ke4 {[%emt 0:01:29]} Kc6 {[%emt 0:00:49]} 67. Rb3 {[%emt 0:00:11]} Bg7 {[%emt 0:00:25]} 68. Kd3 {[%emt 0:00:33]} Be5 {[%emt 0:01:24]} 69. e4 {[%emt 0:00:37]} Kc5 {[%emt 0:00:35]} 70. Rb7 {[%emt 0:00:34]} Kc6 {[%emt 0:00:19]} 71. Rb3 {[%emt 0:00:07]} Kc5 {[%emt 0:00:05]} 72. Kc2 {[%emt 0:00:07]} Kd4 {[%emt 0:01:09]} 73. Rxb2 {[%emt 0:00:15]} Kxe4 {[%emt 0:00:10]} 74. Rb7 {[%emt 0:00:09]} Bd4 {[%emt 0:00:19]} 75. Kd2 {[%emt 0:00:08]} Be5 {[%emt 0:00:07]} 76. Ke2 {[%emt 0:00:08]} Bd4 {[%emt 0:00:05]} 77. Rb4 {[%emt 0:00:04]} Ke5 {[%emt 0:00:11]} 78. Kd3 {[%emt 0:00:05]} Bf2 {[%emt 0:00:34]} 79. Re4+ {[%emt 0:00:09]} Kd5 {[%emt 0:00:13]} 80. Rf4 {[%emt 0:00:04]} Bg3 {[%emt 0:00:17]} 81. Rf5+ {[%emt 0:00:02]} Be5 {[%emt 0:00:09]} 82. Rh5 {[%emt 0:00:03]} Kd6 {[%emt 0:00:08]} 83. Ke4 {[%emt 0:00:03]} Bc3 {[%emt 0:00:22]} 84. Rd5+ {[%emt 0:00:04]} Kc6 {[%emt 0:00:08]} 85. Rd3 {[%emt 0:00:08]} Be1 {[%emt 0:01:12]} 86. Rd1 {[%emt 0:00:11]} Bf2 {[%emt 0:00:16]} 87. Rc1+ {[%emt 0:00:12]} Kd6 {[%emt 0:00:08]} 88. Rh1 {[%emt 0:00:28]} 1/2-1/2

[Event "45th FIDE Olympiad 2024"]
[Site "Budapest"]
[Date "2024.09.16"]
[Round "6.59"]
[White "Terubea, Ronald"]
[Black "Salvadora, Angelo"]
[Result "1-0"]
[WhiteElo "1836"]
[BlackElo "1812"]
[PlyCount "75"]
[EventDate "2024.09.05"]
[EventType "team-tourn"]
[EventCountry "HUN"]
[WhiteTeam "Fiji"]
[BlackTeam "Palau"]
[WhiteTeamCountry "FIJ"]
[BlackTeamCountry "PAL"]
[TimeControl "40/5400+30:1800+30"]

1. e4 d6 2. Nf3 e5 3. d4 exd4 4. Nxd4 Bd7 5. Nc3 Nc6 6. Be3 a6 7. Be2 g6 8. h4 Bh6 9. Nxc6 Bxc6 10. Qd4 f6 11. f4 Bg7 12. Qd2 Ne7 13. O-O-O Qd7 14. h5 h6 15. hxg6 O-O-O 16. f5 d5 17. Bxh6 Bxh6 18. Rxh6 Rxh6 19. Qxh6 Qe8 20. g4 d4 21. Nd5 Nxd5 22. exd5 Bxd5 23. Bd3 Qe7 24. Qd2 Bxa2 25. Re1 Qd6 26. g5 Bg8 27. Rg1 c5 28. gxf6 Qxf6 29. Qg5 Rd6 30. Qxf6 Rxf6 31. Rh1 Kd7 32. Rh8 Rf8 33. f6 Ke8 34. g7 Rxf6 35. Rxg8+ Kf7 36. Bc4+ Kg6 37. Rb8 b5 38. g8=Q+ 1-0